fUSD/lending_fUSD_20250313
["ID","MTS","AMOUNT","RATE_DAILY","PERIOD"]
[356046627,1741845046690,-1418.0,0.00014344,2]
[356046628,1741845046699,-392.626,0.00014344,2]
[356046629,1741845046708,-150.0,0.00014344,2]
[356046630,1741845046717,-641.0,0.00014344,2]
[356046631,1741845046728,-651.996,0.00014344,2]
[356046632,1741845046737,-3933.0,0.00014344,2]
[356046633,1741845046746,-1013.0,0.00014344,2]
[356046634,1741845046755,-151.0,0.00014344,2]
[356046635,1741845046764,-151.0,0.00014344,2]
[356046636,1741845046773,-152.122724,0.00014344,2]
[356046637,1741845046783,-151.0,0.00014344,2]
[356046638,1741845046792,-151.0,0.00014344,2]
[356046639,1741845046801,-151.0,0.00014344,2]
[356046640,1741845046810,-1000.0,0.00014352,2]
[356046641,1741845046819,-151.0,0.00014356,2]
[356046642,1741845046829,-253.548376,0.00014356,2]
[356046643,1741845046838,-253.548376,0.00014356,2]
[356046644,1741845046847,-714.86,0.00014372,2]
[356046645,1741845046856,-1001.71788604,0.00014489,2]
[356046646,1741845046865,-200.0136096,0.00014652,2]
[356046647,1741845046875,-948.99,0.0001479,2]
[356046648,1741845046884,-700.6,0.00014795,2]
[356046649,1741845046894,-248.07250942,0.00014833,2]
[356046650,1741845046903,-896.47092969,0.00014833,2]
[356046651,1741845046912,-891.0,0.0001488,2]
[356046652,1741845046921,-600.0,0.00015,2]
[356046653,1741845046931,-155.0,0.00015003,5]
[356046654,1741845046940,-154.0,0.00015003,5]
[356046655,1741845046950,-372.48,0.00015254,2]
[356046656,1741845046959,-4485.9,0.0001531,2]
[356046657,1741845046968,-715.41,0.0001531,2]
[356046658,1741845046977,-186.07,0.00015315,2]
[356046659,1741845046986,-446.32,0.00015315,2]
[356046660,1741845046995,-441.94,0.00015315,2]
[356046661,1741845047005,-441.94,0.00015315,2]
[356046662,1741845047014,-441.94,0.00015315,2]
[356046663,1741845047023,-714.86,0.00015969,2]
[356046664,1741845047032,-200.0136096,0.00016436,2]
[356046665,1741845047042,-248.07250942,0.00016477,2]
[356046666,1741845047051,-896.47092969,0.00016477,2]
[356046667,1741845047060,-426.85,0.00016493,30]
[356046668,1741845047069,-529.57,0.00016575,2]
[356046669,1741845047079,-372.48,0.00016948,2]
[356046670,1741845047087,-948.99,0.0001698,2]
[356046671,1741845047097,-650.0,0.00017,2]
[356046672,1741845047106,-441.12,0.00017233,2]
[356046673,1741845047115,-150.42,0.00017233,2]
[356046674,1741845047126,-150.0,0.00017233,2]
[356046675,1741845047135,-345.17,0.00017233,2]
[356046676,1741845047145,-150.0,0.00017233,2]
[356046677,1741845047155,-441.12,0.00017233,2]
[356046678,1741845047164,-336.4,0.00017233,2]
[356046679,1741845047173,-150.0,0.00017233,2]
[356046680,1741845047183,-345.17,0.00017233,2]
[356046681,1741845047192,-345.17,0.00017233,2]
[356046682,1741845047201,-345.17,0.00017233,2]
[356046683,1741845047211,-311.23,0.00017233,2]
[356046684,1741845047220,-1279.0,0.00017344,2]
[356046685,1741845047230,-2033.0,0.00017344,2]
[356046686,1741845047239,-1418.0,0.00017344,2]
[356046687,1741845047249,-150.0,0.00017344,2]
[356046688,1741845047258,-641.0,0.00017344,2]
[356046689,1741845047268,-3933.0,0.00017344,2]
[356046690,1741845047277,-281.643,0.00017344,2]
[356046691,1741845047287,-151.0,0.00017344,2]
[356046692,1741845047297,-4776.52566742,0.00017423,2]
[356046693,1741845047306,-714.86,0.00017566,2]
[356046694,1741845047316,-200.0,0.00018082,2]
[356046695,1741845047325,-248.07250942,0.00018122,2]
[356046696,1741845047335,-896.47092969,0.00018122,2]
[356046697,1741845047344,-200.0136096,0.0001822,2]
[356046698,1741845047353,-154.09,0.000186,2]
[356046699,1741845047363,-372.48,0.00018643,2]
[356046700,1741845047373,-151.0,0.00018877,2]
[356046701,1741845047383,-151.0,0.00018877,2]
[356046702,1741845047392,-700.0,0.00019,2]
[356046703,1741845047401,-151.0,0.00019,2]
[356046704,1741845047411,-151.0,0.00019,2]
[356046705,1741845047420,-890.51862196,0.00019,2]
[356046706,1741845047435,-503.0,0.00019151,2]
[356046707,1741845047444,-714.86,0.00019163,2]
[356046708,1741845047454,-948.99,0.0001917,2]
[356046709,1741845047463,-318.05293518,0.00019306,2]
[356046710,1741845047474,-456.44,0.00019699,2]
[356046711,1741845047483,-301.62,0.00019699,2]
[356046712,1741845047493,-150.0,0.00019699,2]
[356046713,1741845047502,-154.99,0.00019699,2]
[356046714,1741845047512,-344.99,0.00019699,2]
[356046715,1741845047522,-248.07250942,0.00019766,2]
[356046716,1741845047532,-896.47092969,0.00019766,2]
[356046717,1741845047541,-500.0,0.00019973,2]
[356046718,1741845047551,-2507.6107537,0.00019996,2]
[356046719,1741845047560,-940.2068491,0.00019996,2]
[356046720,1741845047570,-1876.4732715,0.00019996,2]
[356046721,1741845047580,-4433.1208714,0.00019996,2]
[356046722,1741845047589,-10470.2748813,0.00019996,2]
[356046723,1741845047599,-992.05339368,0.0002,2]
[356046724,1741845047608,-500.0,0.0002,2]
[356046725,1741845047618,-500.0,0.0002,2]
[356046726,1741845047629,-500.0,0.0002,2]
[356046727,1741845047639,-500.0,0.0002,2]
[356046728,1741845047648,-500.0,0.0002,2]
[356046729,1741845047658,-500.0,0.0002,2]
[356046730,1741845047667,-500.0,0.0002,2]
[356046731,1741845047677,-500.0,0.0002,2]
[356046732,1741845047687,-500.0,0.0002,2]
[356046733,1741845047696,-500.0,0.0002,2]
[356046734,1741845047706,-230.0,0.0002,7]
[356046735,1741845047715,-3047.678023,0.0002,31]
[356046736,1741845047725,-100000.0,0.0002,2]
[356046737,1741845047734,-151.0,0.0002,2]
[356046738,1741845047743,-163.231984,0.0002,2]
[356046739,1741845047752,-163.231984,0.0002,2]
[356046740,1741845047761,-151.0,0.0002,2]
[356046741,1741845047769,-151.0,0.0002,2]
[356046742,1741845047778,-151.0,0.0002,2]
[356046743,1741845047787,-151.0,0.0002,2]
[356046744,1741845047796,-151.0,0.0002,2]
[356046745,1741845047805,-151.0,0.0002,2]
[356046746,1741845047814,-151.0,0.0002,2]
[356046747,1741845047823,-151.0,0.0002,2]
[356046748,1741845047833,-181.721127,0.0002,2]
[356046749,1741845047842,-181.721127,0.0002,2]
[356046750,1741845047851,-151.0,0.0002,2]
[356046751,1741845047861,-550.639309,0.0002,2]
[356046752,1741845047871,-243.636315,0.0002,2]
[356046753,1741845047880,-550.639309,0.0002,2]
[356046754,1741845047890,-151.0,0.0002,2]
[356046755,1741845047899,-151.0,0.0002,2]
[356046756,1741845047909,-151.0,0.0002,2]
[356046757,1741845047918,-151.0,0.0002,2]
[356046758,1741845047928,-151.0,0.0002,2]
[356046759,1741845047938,-151.0,0.0002,2]
[356046760,1741845047947,-253.548376,0.0002,2]
[356046761,1741845047957,-253.548376,0.0002,2]
[356046762,1741845047966,-151.0,0.0002,2]
[356046763,1741845047976,-151.0,0.0002,2]
[356046764,1741845047985,-151.0,0.0002,2]
[356046765,1741845047994,-151.347939,0.0002,2]
[356046766,1741845048004,-151.0,0.0002,2]
[356046767,1741845048014,-151.0,0.0002,2]
[356046768,1741845048024,-151.0,0.0002,2]
[356046769,1741845048034,-316.700282,0.0002,2]
[356046770,1741845048043,-151.0,0.0002,2]
[356046771,1741845048053,-316.700282,0.0002,2]
[356046772,1741845048063,-151.445736,0.0002,2]
[356046773,1741845048072,-526.774914,0.0002,2]
[356046774,1741845048081,-526.774914,0.0002,2]
[356046775,1741845048091,-184.845228,0.0002,2]
[356046776,1741845048101,-2171.579055,0.0002,2]
[356046777,1741845048110,-151.0,0.0002,2]
[356046778,1741845048120,-2171.579055,0.0002,2]
[356046779,1741845048129,-151.0,0.0002,2]
[356046780,1741845048139,-285.845474,0.0002,2]
[356046781,1741845048149,-204.290379,0.0002,2]
[356046782,1741845048158,-183.38753,0.0002,2]
[356046783,1741845048167,-183.38753,0.0002,2]
[356046784,1741845048177,-360.945422,0.0002,2]
[356046785,1741845048187,-360.945422,0.0002,2]
[356046786,1741845048196,-151.0,0.0002,2]
[356046787,1741845048206,-151.0,0.0002,2]
[356046788,1741845048216,-151.0,0.0002,2]
[356046789,1741845048226,-151.667353,0.0002,2]
[356046790,1741845048235,-151.0,0.0002,2]
[356046791,1741845048245,-151.0,0.0002,2]
[356046792,1741845048255,-1000.0655684,0.0002,2]
[356046793,1741845048265,-151.0,0.0002,2]
[356046794,1741845048275,-286.624034,0.0002,2]
[356046795,1741845048284,-286.624034,0.0002,2]
[356046796,1741845048293,-156.973034,0.0002,2]
[356046797,1741845048303,-151.0,0.0002,2]
[356046798,1741845048312,-151.0,0.0002,2]
[356046799,1741845048322,-151.368444,0.0002,2]
[356046800,1741845048331,-151.0,0.0002,2]
[356046801,1741845048456,-315.81466,0.0002,2]
[356046802,1741845048473,-315.81466,0.0002,2]
[356046803,1741845048483,-151.0,0.0002,2]
[356046804,1741845048493,-151.953132,0.0002,2]
[356046805,1741845048502,-151.0,0.0002,2]
[356046806,1741845048514,-151.0,0.0002,2]
[356046807,1741845048523,-151.0,0.0002,2]
[356046808,1741845048533,-151.0,0.0002,2]
[356046809,1741845048542,-185.484,0.0002,2]
[356046810,1741845048551,-185.484,0.0002,2]
[356046811,1741845048560,-151.0,0.0002,2]
[356046812,1741845048568,-277.137685,0.0002,2]
[356046813,1741845048578,-277.137685,0.0002,2]
[356046814,1741845048587,-151.0,0.0002,2]
[356046815,1741845048597,-2000.0,0.0002,4]
[356046816,1741845048607,-151.0,0.0002,2]
[356046817,1741845048616,-480.306022,0.0002,2]
[356046818,1741845048626,-480.306022,0.0002,2]
[356046819,1741845048635,-200.0136096,0.00020004,2]
[356046820,1741845048644,-216880.76805519,0.0002001,2]
[356046821,1741845048653,-151.0,0.0002001,2]
[356046822,1741845048663,-163.231984,0.0002001,2]
[356046823,1741845048672,-163.231984,0.0002001,2]
[356046824,1741845048682,-158.530071,0.0002001,2]
[356046825,1741845048691,-151.569171,0.0002001,2]
[356046826,1741845048700,-151.0,0.0002001,2]
[356046827,1741845048710,-151.0,0.0002001,2]
[356046828,1741845048719,-151.0,0.0002001,2]
[356046829,1741845048731,-151.0,0.0002001,2]
[356046830,1741845048740,-151.0,0.0002001,2]
[356046831,1741845048749,-151.0,0.0002001,2]
[356046832,1741845048759,-151.0,0.0002001,2]
[356046833,1741845048768,-151.0,0.0002001,2]
[356046834,1741845048777,-151.0,0.0002001,2]
[356046835,1741845048787,-151.0,0.0002001,2]
[356046836,1741845048796,-181.721127,0.0002001,2]
[356046837,1741845048805,-181.721127,0.0002001,2]
[356046838,1741845048815,-151.0,0.0002001,2]
[356046839,1741845048824,-550.639309,0.0002001,2]
[356046840,1741845048834,-550.639309,0.0002001,2]
[356046841,1741845048844,-151.0,0.0002001,2]
[356046842,1741845048853,-151.0,0.0002001,2]
[356046843,1741845048862,-231.746328,0.0002001,2]
[356046844,1741845048871,-151.0,0.0002001,2]
[356046845,1741845048881,-151.0,0.0002001,2]
[356046846,1741845048891,-151.0,0.0002001,2]
[356046847,1741845048900,-253.548376,0.0002001,2]
[356046848,1741845048910,-253.548376,0.0002001,2]
[356046849,1741845048919,-151.0,0.0002001,2]
[356046850,1741845048928,-151.0,0.0002001,2]
[356046851,1741845048938,-151.0,0.0002001,2]
[356046852,1741845048948,-151.0,0.0002001,2]
[356046853,1741845048958,-151.0,0.0002001,2]
[356046854,1741845048967,-151.0,0.0002001,2]
[356046855,1741845048976,-316.700282,0.0002001,2]
[356046856,1741845048986,-151.0,0.0002001,2]
[356046857,1741845048996,-316.700282,0.0002001,2]
[356046858,1741845049005,-526.774914,0.0002001,2]
[356046859,1741845049015,-526.774914,0.0002001,2]
[356046860,1741845049025,-2171.579055,0.0002001,2]
[356046861,1741845049035,-151.0,0.0002001,2]
[356046862,1741845049044,-2171.579055,0.0002001,2]
[356046863,1741845049053,-151.0,0.0002001,2]
[356046864,1741845049062,-183.38753,0.0002001,2]
[356046865,1741845049072,-183.38753,0.0002001,2]
[356046866,1741845049081,-360.945422,0.0002001,2]
[356046867,1741845049090,-360.945422,0.0002001,2]
[356046868,1741845049100,-151.0,0.0002001,2]
[356046869,1741845049109,-152.140121,0.0002001,2]
[356046870,1741845049118,-151.0,0.0002001,2]
[356046871,1741845049127,-151.0,0.0002001,2]
[356046872,1741845049137,-151.0,0.0002001,2]
[356046873,1741845049147,-151.0,0.0002001,2]
[356046874,1741845049156,-286.624034,0.0002001,2]
[356046875,1741845049166,-286.624034,0.0002001,2]
[356046876,1741845049175,-151.0,0.0002001,2]
[356046877,1741845049184,-151.0,0.0002001,2]
[356046878,1741845049194,-151.0,0.0002001,2]
[356046879,1741845049203,-315.81466,0.0002001,2]
[356046880,1741845049212,-315.81466,0.0002001,2]
[356046881,1741845049222,-151.0,0.0002001,2]
[356046882,1741845049231,-288.784896,0.0002001,2]
[356046883,1741845049240,-151.0,0.0002001,2]
[356046884,1741845049249,-151.0,0.0002001,2]
[356046885,1741845049258,-151.0,0.0002001,2]
[356046886,1741845049267,-185.484,0.0002001,2]
[356046887,1741845049277,-185.484,0.0002001,2]
[356046888,1741845049287,-1000.0,0.0002001,14]
[356046889,1741845049299,-1000.0,0.0002001,14]
[356046890,1741845049308,-1000.0,0.0002001,14]
[356046891,1741845049318,-1000.0,0.0002001,14]
[356046892,1741845049327,-1000.264339,0.0002001,14]
[356046893,1741845049337,-151.0,0.0002001,2]
[356046894,1741845049346,-277.137685,0.0002001,2]
[356046895,1741845049355,-277.137685,0.0002001,2]
[356046896,1741845049365,-151.0,0.0002001,2]
[356046897,1741845049375,-151.0,0.0002001,2]
[356046898,1741845049384,-480.306022,0.0002001,2]
[356046899,1741845049393,-480.306022,0.0002001,2]
[356046900,1741845049402,-218.15,0.00020011,30]
[356046901,1741845049411,-372.48,0.00020338,2]
[356046902,1741845049420,-305.646,0.00020344,2]
[356046903,1741845049435,-2033.0,0.00020344,2]
[356046904,1741845049444,-1418.0,0.00020344,2]
[356046905,1741845049453,-641.0,0.00020344,2]
[356046906,1741845049462,-151.0,0.00020344,2]
[356046907,1741845049473,-300.32,0.00020788,2]
[356046908,1741845049483,-25004.85,0.000209,120]
[356046909,1741845049492,-426.85,0.00020971,30]
[356046910,1741845049503,-750.0,0.00021,2]
[356046911,1741845049512,-2000.0,0.00021,4]
[356046912,1741845049521,-4776.52566742,0.00021184,2]
[356046913,1741845049530,-948.99,0.0002136,2]
[356046914,1741845049539,-248.07250942,0.00021411,2]
[356046915,1741845049549,-896.47092969,0.00021411,2]
[356046916,1741845049558,-200.0136096,0.00021788,3]
[356046917,1741845049567,-500.0,0.00021917,12]
[356046918,1741845049576,-500.31716425,0.00021917,12]
[356046919,1741845049586,-2000.0,0.00022,4]
[356046920,1741845049596,-243.0,0.00023,120]
[356046921,1741845049606,-500.0,0.00023,2]
[356046922,1741845049615,-677.37,0.00023,2]
[356046923,1741845049624,-200.0,0.00023,2]
[356046924,1741845049634,-2000.0,0.00023,4]
[356046925,1741845049643,-248.07250942,0.00023055,2]
[356046926,1741845049652,-896.47092969,0.00023055,2]
[356046927,1741845049661,-218.6,0.00023344,2]
[356046928,1741845049670,-151.0,0.00023344,2]
[356046929,1741845049679,-150.0,0.00023512,30]
[356046930,1741845049689,-178.00180082,0.00023512,30]
[356046931,1741845049698,-150.0,0.00023512,30]
[356046932,1741845049707,-150.0,0.00023512,30]
[356046933,1741845049717,-150.0,0.00023512,30]
[356046934,1741845049728,-1605.49244457,0.00023512,30]
[356046935,1741845049738,-740.32305372,0.00023512,30]
[356046936,1741845049747,-6464.40023964,0.00023512,30]
[356046937,1741845049756,-1292.91024322,0.00023512,30]
[356046938,1741845049765,-948.99,0.0002355,2]
[356046939,1741845049775,-200.0136096,0.00023572,3]
[356046940,1741845049783,-160.50846224,0.00023596,4]
[356046941,1741845049792,-160.50846224,0.00023648,4]
[356046942,1741845049801,-160.50846224,0.000237,4]
[356046943,1741845049811,-160.50846224,0.00023753,4]
[356046944,1741845049820,-160.50846224,0.00023805,4]
[356046945,1741845049829,-429.33,0.00023836,2]
[356046946,1741845049838,-152.52,0.00023836,2]
[356046947,1741845049847,-160.50846224,0.00023857,4]
[356046948,1741845049856,-160.50846224,0.00023909,4]
[356046949,1741845049865,-160.50846224,0.00023961,4]
[356046950,1741845049875,-441.94,0.00023973,2]
[356046951,1741845049885,-441.94,0.00023973,2]
[356046952,1741845049903,-441.52,0.00023973,2]
[356046953,1741845049912,-2000.0,0.00024,4]
[356046954,1741845049926,-160.50846224,0.00024014,4]
[356046955,1741845049935,-160.50846224,0.00024066,4]
[356046956,1741845049944,-160.50846224,0.00024118,4]
[356046957,1741845049953,-160.50846224,0.0002417,4]
[356046958,1741845049962,-160.50846224,0.00024222,4]
[356046959,1741845049971,-160.50846224,0.00024275,4]
[356046960,1741845049981,-160.50846224,0.00024327,4]
[356046961,1741845049991,-160.50846224,0.00024379,4]
[356046962,1741845050000,-164.519309,0.00024402,3]
[356046963,1741845050009,-160.50846224,0.00024431,4]
[356046964,1741845050019,-160.50846224,0.00024483,4]
[356046965,1741845050028,-160.50846224,0.00024536,4]
[356046966,1741845050037,-160.50846224,0.00024588,4]
[356046967,1741845050047,-160.50846224,0.0002464,4]
[356046968,1741845050056,-1000.0,0.00024658,2]
[356046969,1741845050065,-160.50846224,0.00024692,4]
[356046970,1741845050074,-248.07250942,0.000247,2]
[356046971,1741845050083,-896.47092969,0.000247,2]
[356046972,1741845050092,-160.50846224,0.00024744,4]
[356046973,1741845050101,-38012.65243673,0.00024749,13]
[356046974,1741845050111,-2151.2070852,0.00024783,2]
[356046975,1741845050123,-1794.8034167,0.00024783,2]
[356046976,1741845050133,-805.5541094,0.00024783,2]
[356046977,1741845050142,-670.9013697,0.00024783,2]
[356046978,1741845050151,-1607.7321246,0.00024783,2]
[356046979,1741845050160,-1338.9909777,0.00024783,2]
[356046980,1741845050281,-286.624034,0.00024783,7]
[356046981,1741845050291,-286.624034,0.00024783,7]
[356046982,1741845050302,-4324.8168125,0.00024783,2]
[356046983,1741845050311,-10214.4791788,0.00024783,2]
[356046984,1741845050320,-151.0,0.00024783,7]
[356046985,1741845050329,-151.0,0.00024783,7]
[356046986,1741845050339,-315.81466,0.00024783,7]
[356046987,1741845050348,-315.81466,0.00024783,7]
[356046988,1741845050357,-151.0,0.00024783,7]
[356046989,1741845050367,-151.0,0.00024783,7]
[356046990,1741845050376,-185.484,0.00024783,7]
[356046991,1741845050385,-185.484,0.00024783,7]
[356046992,1741845050395,-160.50846224,0.00024797,4]
[356046993,1741845050404,-209.77158551,0.00024799,10]
[356046994,1741845050413,-151.0,0.000248,7]
[356046995,1741845050422,-163.231984,0.000248,7]
[356046996,1741845050435,-163.231984,0.000248,7]
[356046997,1741845050452,-151.0,0.000248,7]
[356046998,1741845050461,-151.0,0.000248,7]
[356046999,1741845050470,-151.0,0.000248,7]
[356047000,1741845050479,-151.532291,0.000248,7]
[356047001,1741845050488,-151.274958,0.000248,7]
[356047002,1741845050497,-151.0,0.000248,7]
[356047003,1741845050507,-151.0,0.000248,7]
[356047004,1741845050516,-151.0,0.000248,7]
[356047005,1741845050525,-151.0,0.000248,7]
[356047006,1741845050534,-151.0,0.000248,7]
[356047007,1741845050544,-181.721127,0.000248,7]
[356047008,1741845050553,-181.721127,0.000248,7]
[356047009,1741845050563,-151.0,0.000248,7]
[356047010,1741845050573,-151.0,0.000248,7]
[356047011,1741845050582,-550.639309,0.000248,7]
[356047012,1741845050592,-550.639309,0.000248,7]
[356047013,1741845050601,-151.0,0.000248,7]
[356047014,1741845050611,-151.0,0.000248,7]
[356047015,1741845050620,-151.0,0.000248,7]
[356047016,1741845050632,-151.0,0.000248,7]
[356047017,1741845050641,-260.911148,0.000248,7]
[356047018,1741845050651,-153.555468,0.000248,7]
[356047019,1741845050660,-151.0,0.000248,7]
[356047020,1741845050670,-151.52848,0.000248,7]
[356047021,1741845050680,-253.548376,0.000248,7]
[356047022,1741845050690,-253.548376,0.000248,7]
[356047023,1741845050700,-253.548376,0.000248,7]
[356047024,1741845050709,-253.548376,0.000248,7]
[356047025,1741845050719,-151.0,0.000248,7]
[356047026,1741845050729,-151.0,0.000248,7]
[356047027,1741845050739,-223.507358,0.000248,7]
[356047028,1741845050749,-151.0,0.000248,7]
[356047029,1741845050759,-151.0,0.000248,7]
[356047030,1741845050769,-151.0,0.000248,7]
[356047031,1741845050778,-151.0,0.000248,7]
[356047032,1741845050787,-151.0,0.000248,7]
[356047033,1741845050796,-151.0,0.000248,7]
[356047034,1741845050806,-192.484142,0.000248,7]
[356047035,1741845050816,-316.700282,0.000248,7]
[356047036,1741845050825,-316.700282,0.000248,7]
[356047037,1741845050835,-251.968254,0.000248,7]
[356047038,1741845050844,-316.700282,0.000248,7]
[356047039,1741845050853,-316.700282,0.000248,7]
[356047040,1741845050862,-526.774914,0.000248,7]
[356047041,1741845050872,-526.774914,0.000248,7]
[356047042,1741845050885,-526.774914,0.000248,7]
[356047043,1741845050895,-526.774914,0.000248,7]
[356047044,1741845050905,-151.0,0.000248,7]
[356047045,1741845050914,-2171.579055,0.000248,7]
[356047046,1741845050924,-2171.579055,0.000248,7]
[356047047,1741845050934,-151.0,0.000248,7]
[356047048,1741845050943,-151.0,0.000248,7]
[356047049,1741845050953,-2171.579055,0.000248,7]
[356047050,1741845050962,-2171.579055,0.000248,7]
[356047051,1741845050971,-151.0,0.000248,7]
[356047052,1741845050981,-184.600706,0.000248,7]
[356047053,1741845050991,-183.38753,0.000248,7]
[356047054,1741845051000,-183.38753,0.000248,7]
[356047055,1741845051009,-183.38753,0.000248,7]
[356047056,1741845051019,-183.38753,0.000248,7]
[356047057,1741845051028,-360.945422,0.000248,7]
[356047058,1741845051037,-360.945422,0.000248,7]
[356047059,1741845051047,-360.945422,0.000248,7]
[356047060,1741845051056,-360.945422,0.000248,7]
[356047061,1741845051065,-151.0,0.000248,7]
[356047062,1741845051079,-151.0,0.000248,7]
[356047063,1741845051099,-151.0,0.000248,7]
[356047064,1741845051108,-151.0,0.000248,7]
[356047065,1741845051117,-162.65501,0.000248,7]
[356047066,1741845051127,-151.0,0.000248,7]
[356047067,1741845051136,-151.0,0.000248,7]
[356047068,1741845051145,-151.0,0.000248,7]
[356047069,1741845051155,-151.0,0.000248,7]
[356047070,1741845051165,-286.624034,0.000248,7]
[356047071,1741845051175,-286.624034,0.000248,7]
[356047072,1741845051185,-158.599212,0.000248,7]
[356047073,1741845051195,-151.0,0.000248,7]
[356047074,1741845051207,-151.0,0.000248,7]
[356047075,1741845051218,-151.0,0.000248,7]
[356047076,1741845051227,-315.81466,0.000248,7]
[356047077,1741845051237,-315.81466,0.000248,7]
[356047078,1741845051246,-151.0,0.000248,7]
[356047079,1741845051255,-273.966049,0.000248,7]
[356047080,1741845051264,-151.0,0.000248,7]
[356047081,1741845051274,-151.0,0.000248,7]
[356047082,1741845051283,-151.0,0.000248,7]
[356047083,1741845051293,-185.484,0.000248,7]
[356047084,1741845051302,-615043.581479,0.000248,3]
[356047085,1741845051311,-185.484,0.000248,7]
[356047086,1741845051321,-151.0,0.000248,7]
[356047087,1741845051330,-151.0,0.000248,7]
[356047088,1741845051339,-277.137685,0.000248,7]
[356047089,1741845051349,-277.137685,0.000248,7]
[356047090,1741845051358,-277.137685,0.000248,7]
[356047091,1741845051368,-277.137685,0.000248,7]
[356047092,1741845051377,-151.0,0.000248,7]
[356047093,1741845051387,-151.0,0.000248,7]
[356047094,1741845051396,-151.0,0.000248,7]
[356047095,1741845051405,-151.0,0.000248,7]
[356047096,1741845051415,-480.306022,0.000248,7]
[356047097,1741845051427,-480.306022,0.000248,7]
[356047098,1741845051436,-160.50846224,0.00024849,4]
[356047099,1741845051445,-4216.5127536,0.00024883,2]
[356047100,1741845051455,-4108.2086947,0.00024883,2]
[356047101,1741845051464,-9958.6834763,0.00024883,2]
[356047102,1741845051474,-9702.8877739,0.00024883,2]
[356047103,1741845051483,-151.0,0.000249,7]
[356047104,1741845051492,-180.878626,0.000249,7]
[356047105,1741845051502,-151.0,0.000249,7]
[356047106,1741845051512,-151.0,0.000249,7]
[356047107,1741845051521,-151.0,0.000249,7]
[356047108,1741845051530,-253.548376,0.000249,7]
[356047109,1741845051539,-253.548376,0.000249,7]
[356047110,1741845051549,-151.0,0.000249,7]
[356047111,1741845051558,-151.0,0.000249,7]
[356047112,1741845051567,-151.0,0.000249,7]
[356047113,1741845051575,-151.0,0.000249,7]
[356047114,1741845051585,-316.700282,0.000249,7]
[356047115,1741845051595,-316.700282,0.000249,7]
[356047116,1741845051604,-286.624034,0.000249,7]
[356047117,1741845051613,-286.624034,0.000249,7]
[356047118,1741845051622,-151.0,0.000249,7]
[356047119,1741845051633,-151.0,0.000249,7]
[356047120,1741845051642,-315.81466,0.000249,7]
[356047121,1741845051651,-315.81466,0.000249,7]
[356047122,1741845051660,-151.0,0.000249,7]
[356047123,1741845051669,-151.0,0.000249,7]
[356047124,1741845051678,-242.705403,0.000249,7]
[356047125,1741845051687,-185.484,0.000249,7]
[356047126,1741845051696,-185.484,0.000249,7]